[Event "15th Chennai GM Open 2025"]
[Site "Chennai"]
[Date "2025.01.05"]
[Round "6.14"]
[White "Shirliyev, Allayar"]
[Black "Slizhevsky, Alexander"]
[Result "1/2-1/2"]
[ECO "B53"]
[WhiteElo "2196"]
[BlackElo "2340"]
[Annotator "TA"]
[PlyCount "102"]
[EventDate "2025.01.02"]
[EventType "swiss"]
[EventCountry "IND"]
[SourceTitle "playchess.com"]
[Source "ChessBase"]
[SourceQuality "1"]
[TimeControl "5400+30"]

{[%evp 9,102,29,22,33,28,28,20,21,21,23,32,29,39,25,21,27,42,42,34,21,44,29,57,47,104,91,91,91,93,92,95,95,98,87,95,93,85,90,93,89,95,77,66,69,69,51,52,65,61,44,47,54,54,41,47,41,56,43,42,50,58,56,43,50,51,44,44,19,19,0,0,0,0,0,11,11,13,0,0,-8,15,27,58,8,8,8,8,8,8,8,8,8,8,8,233]} 1. e4 {[%emt 0:00:01]} c5 {[%emt 0:00:08]} 2. Nf3 {[%emt 0:00:04]} d6 {[%emt 0:00:51]} 3. d4 {[%emt 0:00:04]} cxd4 {[%emt 0:00:14]} 4. Qxd4 {[%emt 0:00:04]} a6 {[%emt 0:00:20]} 5. c4 {[%emt 0:01:59]} Nf6 {[%emt 0:02:05]} 6. Be2 {[%emt 0:01:28]} Nc6 {[%emt 0:01:52]} 7. Qe3 {[%emt 0:00:23]} Bg4 {[%emt 0:03:46]} 8. O-O {[%emt 0:00:37]} e6 {[%emt 0:08:28]} 9. Rd1 {[%emt 0:01:41]} Qc7 {[%emt 0:01:45]} 10. Nc3 {[%emt 0:01:31]} Be7 {[%emt 0:01:56]} 11. b3 {[%emt 0:01:11]} O-O {[%emt 0:01:31]} 12. h3 {[%emt 0:04:10]} Bxf3 {[%emt 0:00:59]} 13. Bxf3 {[%emt 0:00:53]} Rad8 {[%emt 0:06:35]} 14. Bb2 {[%emt 0:01:15]} Rfe8 {[%emt 0:01:04]} 15. Rd2 {[%emt 0:01:45]} Qb8 {[%emt 0:08:26]} 16. Be2 {[%emt 0:08:03]} d5 {[%emt 0:14:16]} 17. cxd5 $16 {[%emt 0:02:59]} exd5 {[%emt 0:00:20]} 18. Nxd5 {[%emt 0:02:06]} Nxd5 {[%emt 0:00:30]} 19. Rxd5 {[%emt 0:01:51]} ({But not} 19. exd5 Bf6 20. Qb6 Bxb2 21. Rxb2 Qe5 $11) 19... Rxd5 {[%emt 0:01:15]} 20. exd5 {[%emt 0:00:05]} Bf6 {[%emt 0:03:36]} 21. Qd2 $1 {[%emt 0:00:32]} Bxb2 {[%emt 0:00:51]} 22. Qxb2 {[%emt 0:00:06]} Ne7 {[%emt 0:00:40]} 23. Bf3 {[%emt 0:02:49]} Nf5 {[%emt 0:00:18]} 24. Rd1 {[%emt 0:02:53]} Qf4 {[%emt 0:04:57]} 25. Qc1 {[%emt 0:06:33]} Qxc1 {[%emt 0:02:49]} 26. Rxc1 {[%emt 0:02:14][%mdl 4096] Endgame KRB-KRN. White is a pawn up.} Kf8 {[%emt 0:00:56]} 27. Kf1 {[%emt 0:00:07]} Nd6 {[%emt 0:01:38]} 28. Rc7 {[%emt 0:02:11]} Re7 {[%emt 0:00:26] Prevents Rd7} 29. Rxe7 {[%emt 0:00:05]} Kxe7 $14 {[%emt 0:00:05] KB-KN. White is a pawn up.} 30. Ke2 {[%emt 0:00:06]} Kf6 $1 {[%emt 0:01:07]} 31. g3 {[%emt 0:01:52]} Ke5 {[%emt 0:01:25]} 32. Ke3 {[%emt 0:00:08]} g5 {[%emt 0:02:38]} 33. Bg2 {[%emt 0:00:09]} Nf5+ {[%emt 0:01:02]} 34. Kd3 {[%emt 0:01:25]} Nd6 {[%emt 0:00:38] Wards off Be4} 35. Kc3 {[%emt 0:05:14]} a5 {[%emt 0:02:43]} 36. a4 {[%emt 0:03:25]} b6 {[%emt 0:02:47]} 37. Bh1 {[%emt 0:03:59]} h5 {[%emt 0:02:31]} 38. Bf3 {[%emt 0:04:03]} h4 {[%emt 0:00:35]} 39. gxh4 {[%emt 0:01:28]} gxh4 {[%emt 0:00:15]} 40. Bg2 {[%emt 0:00:05]} f6 {[%emt 0:02:54][%cal Bf7f6,Bf6f5,Bf5f4][%mdl 32]} 41. Bh1 {[%emt 0:03:28]} f5 {[%emt 0:04:46]} 42. Bg2 {[%emt 0:02:09]} f4 {[%emt 0:00:14]} 43. Bh1 {[%emt 0:01:54]} Nf7 {[%emt 0:00:40]} 44. b4 {[%emt 0:00:13]} axb4+ {[%emt 0:01:23]} 45. Kxb4 {[%emt 0:00:07]} Nd6 {[%emt 0:00:26]} 46. a5 {[%emt 0:00:30]} ({Better is} 46. Kc3 $14) 46... bxa5+ $11 {[%emt 0:00:43]} 47. Kxa5 {[%emt 0:00:09]} Nf7 {[%emt 0:00:44]} 48. Kb5 {[%emt 0:01:33]} Kd6 $1 {[%emt 0:00:17]} 49. Bg2 $1 {[%emt 0:02:25]} Ng5 {[%emt 0:01:49] aiming for ...f3.} 50. Kc4 {[%emt 0:03:31]} f3 {[%emt 0:00:18]} 51. Bf1 {[%emt 0:00:33] and Kd4 would now be decisive} Ke5 $2 {[%emt 0:00:45]} (51... Ne4 $11) 1/2-1/2

[Event "15th Chennai GM Open 2025"]
[Site "Chennai"]
[Date "2025.01.05"]
[Round "6.15"]
[White "Mohamed Anees M"]
[Black "Mohmad, Bashiq Imrose"]
[Result "1-0"]
[ECO "B12"]
[WhiteElo "2334"]
[BlackElo "1991"]
[Annotator "TA"]
[PlyCount "71"]
[EventDate "2025.01.02"]
[EventType "swiss"]
[EventCountry "IND"]
[SourceTitle "playchess.com"]
[Source "ChessBase"]
[SourceQuality "1"]
[TimeControl "5400+30"]

{[%evp 9,71,0,0,-14,0,0,27,18,5,17,9,-33,-17,-15,0,-4,8,-31,0,-32,0,-33,0,-20,31,-1,8,-48,0,-20,3,0,0,0,16,42,57,30,29,0,0,0,0,0,12,0,32,20,20,20,60,45,48,54,57,27,68,70,66,89,170,168,460,455]} 1. e4 {[%emt 0:00:07]} c6 {[%emt 0:00:18]} 2. d4 {[%emt 0:00:28]} d5 {[%emt 0:00:08]} 3. e5 {[%emt 0:00:16]} c5 {[%emt 0:00:35]} 4. dxc5 {[%emt 0:00:38]} e6 {[%emt 0:00:08]} 5. a3 {[%emt 0:00:16]} Bxc5 {[%emt 0:00:16]} 6. b4 {[%emt 0:02:17]} Be7 {[%emt 0:00:02]} 7. Nf3 {[%emt 0:00:36]} f6 {[%emt 0:00:10]} 8. Bb2 {[%emt 0:00:55] White has an edge.} a5 {[%emt 0:00:41]} 9. b5 {[%emt 0:01:14]} Nd7 {[%emt 0:00:49]} 10. exf6 {[%emt 0:13:15]} Ngxf6 {[%emt 0:05:15]} 11. Nbd2 {[%emt 0:01:19]} O-O {[%emt 0:00:19][%cal Oe6e5]} 12. Be2 {[%emt 0:01:26]} b6 {[%emt 0:00:28]} 13. O-O {[%emt 0:01:12]} Bb7 {[%emt 0:03:09]} 14. c4 {[%emt 0:04:05]} Nc5 {[%emt 0:00:15]} 15. cxd5 {[%emt 0:14:07]} exd5 {[%emt 0:06:04]} 16. Nd4 {[%emt 0:00:48]} Nfe4 {[%emt 0:11:50]} (16... Qd7 $11) 17. a4 {[%emt 0:09:10]} (17. Nxe4 {seems wilder.} dxe4 18. Nc6 Bxc6 19. bxc6 Nd3 20. Bxd3 exd3 21. Qb3+) 17... Bf6 {[%emt 0:02:33]} 18. Ra3 {[%emt 0:02:19]} (18. Nxe4 $11 dxe4 19. Qc2) 18... Qe8 {[%emt 0:02:53]} 19. Ba1 {[%emt 0:05:37]} Kh8 {[%emt 0:04:12]} 20. N2f3 {[%emt 0:03:14]} Qg6 {[%emt 0:02:25]} 21. Ne1 {[%emt 0:05:05]} Be5 {[%emt 0:06:20][%cal Oe4f2]} (21... Qe8 {simplifies} 22. Nec2 Qe7 23. Nc6 Qd6) 22. Rh3 {[%emt 0:06:46]} Ne6 {[%emt 0:18:45]} 23. Nxe6 {[%emt 0:04:02]} (23. Bh5 {is interesting.} Qf6 24. Nxe6 Qxe6 25. Bg6) 23... Qxe6 {[%emt 0:00:09]} 24. Bxe5 {[%emt 0:10:06]} Qxe5 {[%emt 0:00:03]} 25. Bd3 {[%emt 0:01:03]} h6 {[%emt 0:01:36]} 26. Bc2 {[%emt 0:03:51]} Rae8 {[%emt 0:02:19]} 27. Rf3 {[%emt 0:03:05]} (27. Re3 {keeps more tension.} d4 28. Nf3 Rxf3 29. Rxf3 Nc3 30. Rf5) 27... Ng5 {[%emt 0:12:12]} 28. Rxf8+ {[%emt 0:01:31]} Rxf8 {[%emt 0:00:01]} 29. Nd3 {[%emt 0:00:30]} Qf6 {[%emt 0:00:53]} 30. Qe2 {[%emt 0:01:37]} Ne6 {[%emt 0:12:03]} 31. Bb1 {[%emt 0:00:55]} d4 {[%emt 0:01:18]} 32. f3 {[%emt 0:00:50] Threatens to win with Re1.} Rc8 {[%emt 0:02:36]} 33. Re1 {[%emt 0:00:58]} Bd5 {[%emt 0:00:44]} 34. Ne5 {[%emt 0:00:40]} Nf4 {[%emt 0:00:17] [#] Inhibits Qd3.} (34... Rc3 $16 35. Ng6+ Kg8) 35. Qd2 $1 $18 {[%emt 0:00:14][%cal Od2f4] Black must now prevent Qxf4!} Qg5 {[%emt 0:00:29] [#]} (35... d3) 36. Qxf4 $3 {[%emt 0:00:16][%mdl 512] Weighted Error Value: White=0.12 (very precise) /Black=0.31.  Mistake:       	White=1     	Black=3      Inaccurate:     	White=7     	Black=8      OK:         	White=11    	Black=8      Strong:       	White=1     	---        Brilliant:      	White=1     	---} 1-0

[Event "15th Chennai GM Open 2025"]
[Site "Chennai"]
[Date "2025.01.05"]
[Round "7"]
[White "Rios Gomez, Cristhian Camilo"]
[Black "Aditya Varun Gampa"]
[Result "1/2-1/2"]
[ECO "D02"]
[WhiteElo "2435"]
[BlackElo "2180"]
[Annotator "TA"]
[PlyCount "90"]
[EventDate "2025.01.02"]
[EventType "swiss"]
[EventCountry "IND"]
[SourceTitle "playchess.com"]
[Source "ChessBase"]
[SourceQuality "1"]
[TimeControl "5400+30"]

{[%evp 11,90,-8,25,32,29,0,-12,-20,1,0,0,0,0,-7,0,-1,51,36,38,36,43,42,57,-31,-33,-40,-53,-26,-33,-98,-91,-101,-63,-60,-73,-125,-122,-110,-124,-152,-136,-113,-112,-197,-195,-211,-221,-218,-222,-216,-189,-203,-196,-198,-164,-218,-204,-181,-178,-193,-208,-179,-188,-162,-107,-159,-154,-157,0,0,0,-62,0,0,0,0,0,0,0,0,0]} 1. d4 {[%emt 0:03:46]} Nf6 {[%emt 0:00:08]} 2. Nf3 {[%emt 0:00:09]} d5 {[%emt 0:00:07]} 3. Bf4 {[%emt 0:00:09][%cal Bc1f4,Bf4g3,Bg3h4,Bh4f6][%mdl 32]} e6 {[%emt 0:01:19]} 4. e3 {[%emt 0:00:40]} c5 {[%emt 0:00:03]} 5. Nbd2 {[%emt 0:01:24]} Nc6 {[%emt 0:00:23]} 6. c3 {[%emt 0:00:17]} cxd4 {[%emt 0:01:25]} 7. exd4 {[%emt 0:00:14]} Nh5 {[%emt 0:00:11]} 8. Bg3 {[%emt 0:02:57]} g6 {[%emt 0:02:25]} 9. Bh4 {[%emt 0:01:09]} Qc7 {[%emt 0:03:33]} 10. g4 {[%emt 0:07:33]} Nf4 {[%emt 0:00:39]} 11. Bf6 {[%emt 0:03:13]} Rg8 {[%emt 0:00:02]} 12. Qc2 {[%emt 0:02:57]} (12. Ne5 $5) 12... Bd7 {[%emt 0:02:32]} 13. O-O-O {[%emt 0:02:13]} Bd6 {[%emt 0:12:16]} (13... Bg7 $11 14. Bxg7 Rxg7) 14. Kb1 {[%emt 0:12:16]} h5 {[%emt 0:05:51]} 15. h3 {[%emt 0:01:25]} Be7 {[%emt 0:01:36]} 16. Bxe7 {[%emt 0:00:41]} Kxe7 {[%emt 0:04:40]} 17. g5 {[%emt 0:00:23]} ({Better is} 17. Nb3 $14) 17... e5 $1 $15 {[%emt 0:02:41]} 18. Qb3 {[%emt 0:00:42]} exd4 {[%emt 0:03:13]} 19. Nxd4 {[%emt 0:02:20]} Kf8 {[%emt 0:00:42]} 20. Nxc6 {[%emt 0:11:27]} (20. Qa4 $15) 20... bxc6 $17 {[%emt 0:00:26]} 21. c4 {[%emt 0:00:28]} Kg7 {[%emt 0:01:40]} 22. Qc3+ {[%emt 0:02:41]} Kh7 {[%emt 0:00:56][%cal Od5d4]} 23. cxd5 {[%emt 0:00:17]} (23. Ka1 $142) 23... Bf5+ {[%emt 0:00:35]} 24. Ka1 {[%emt 0:00:08]} Nxd5 {[%emt 0:00:08]} 25. Qc4 {[%emt 0:07:54]} Rgd8 {[%emt 0:10:27]} 26. Bg2 {[%emt 0:02:59]} Rab8 {[%emt 0:01:22]} 27. Bxd5 {[%emt 0:02:42]} (27. Ne4 $17 Bxe4 28. Bxe4) 27... Rxd5 $19 {[%emt 0:00:51]} 28. Ne4 {[%emt 0:00:07]} Bxe4 {[%emt 0:07:00]} 29. Qxe4 {[%emt 0:00:06]} Rxg5 {[%emt 0:01:32]} 30. Rd3 {[%emt 0:00:08]} Qe5 {[%emt 0:05:59]} 31. Qxe5 {[%emt 0:01:01]} Rxe5 {[%emt 0:00:02][%mdl 4096] Endgame KRR-KRR. Black is a pawn up.} 32. Rd7 {[%emt 0:00:46]} Kg7 {[%emt 0:01:11]} 33. f4 {[%emt 0:00:10]} (33. Rxa7 {is a better defense.} Re2 34. b3) 33... Rf5 {[%emt 0:03:26]} 34. Rxa7 {[%emt 0:00:24]} Rxf4 {[%emt 0:00:08]} 35. Rc7 {[%emt 0:00:12]} Rf2 {[%emt 0:01:19]} 36. b3 {[%emt 0:00:19]} Ra8 {[%emt 0:02:16]} 37. a4 {[%emt 0:00:06][%cal Ba2a4,Ba4a5][%mdl 32]} Ra6 {[%emt 0:05:13]} (37... Rf3 $19 38. Ka2 Rb8) 38. Rc1 {[%emt 0:00:12]} (38. h4 $142) 38... Rf3 $17 {[%emt 0:01:00][%csl LRb3,LRh3]} 39. Kb2 {[%emt 0:00:05]} Rb6 {[%emt 0:01:02]} (39... Rxh3 $17 {Strongly threatening ...Rb6.} 40. R7xc6 Rxc6 41. Rxc6 h4) 40. Rc3 $15 {[%emt 0:00:08]} Rxc3 {[%emt 0:00:05]} 41. Kxc3 {[%emt 0:00:04]} g5 {[%emt 0:00:27]} ({Black should try} 41... Ra6 $15) 42. a5 $11 {[%emt 0:00:33]} Ra6 {[%emt 0:01:23]} 43. b4 {[%emt 0:00:05]} Kf6 {[%emt 0:06:54]} 44. Kd3 {[%emt 0:04:39]} Ke6 {[%emt 0:00:45]} 45. Kd4 {[%emt 0:00:04]} f6 {[%emt 0:03:12]} 1/2-1/2

[Event "15th Chennai GM Open 2025"]
[Site "Chennai"]
[Date "2025.01.06"]
[Round "7.2"]
[White "Siddharth, Jagadeesh"]
[Black "Kaustuv, Kundu"]
[Result "1/2-1/2"]
[ECO "C50"]
[WhiteElo "2515"]
[BlackElo "2409"]
[Annotator "TA"]
[PlyCount "60"]
[EventDate "2025.01.02"]
[EventType "swiss"]
[EventCountry "IND"]
[SourceTitle "playchess.com"]
[Source "ChessBase"]
[SourceQuality "1"]
[TimeControl "5400+30"]

{[%evp 9,60,17,14,21,21,12,19,24,16,0,12,11,28,-2,23,15,20,10,18,10,12,12,10,17,10,19,47,10,18,16,49,53,52,53,70,79,63,60,52,0,0,0,0,0,0,0,11,6,87,0,6,4,10]} 1. e4 {[%emt 0:00:40]} e5 {[%emt 0:04:39]} 2. Nf3 {[%emt 0:00:07]} Nc6 {[%emt 0:00:07]} 3. Bc4 {[%emt 0:00:07]} Nf6 {[%emt 0:00:27]} 4. d3 {[%emt 0:00:05]} Bc5 {[%emt 0:00:05]} 5. a4 {[%emt 0:00:10]} d6 {[%emt 0:01:30]} 6. a5 {[%emt 0:00:13]} a6 {[%emt 0:01:27]} 7. c3 {[%emt 0:00:06]} h6 {[%emt 0:02:57]} 8. O-O {[%emt 0:00:21]} O-O {[%emt 0:00:55]} 9. h3 {[%emt 0:00:17]} Ba7 {[%emt 0:00:44]} 10. Be3 {[%emt 0:00:28]} Be6 {[%emt 0:06:09]} 11. Nbd2 {[%emt 0:10:49]} Bxc4 {[%emt 0:06:04]} 12. Nxc4 {[%emt 0:00:30]} Re8 {[%emt 0:00:09]} 13. Bxa7 {[%emt 0:13:05]} Rxa7 {[%emt 0:00:32]} 14. Re1 {[%emt 0:00:08]} Ra8 {[%emt 0:03:01][%cal Ba7a8,Ba8b8,Bb8d8,Bd8d3][%mdl 32]} 15. Ne3 {[%emt 0:10:21]} Rb8 {[%emt 0:12:40]} 16. b4 {[%emt 0:11:32]} d5 {[%emt 0:04:51][%cal Bd6d5,Bd5d4][%mdl 32]} 17. Qc2 {[%emt 0:00:10]} d4 {[%emt 0:04:44]} 18. Nc4 {[%emt 0:00:50]} (18. cxd4 {is interesting.} exd4 19. Nf5 Nxb4 20. Qc4) 18... Qd7 {[%emt 0:07:27]} 19. Rab1 {[%emt 0:05:22]} Rbd8 {[%emt 0:01:33]} 20. b5 {[%emt 0:05:40]} axb5 {[%emt 0:00:22]} 21. Rxb5 {[%emt 0:00:06]} dxc3 {[%emt 0:00:27]} 22. Qxc3 {[%emt 0:09:58]} Qxd3 {[%emt 0:01:27]} 23. Qxd3 {[%emt 0:01:32]} Rxd3 {[%emt 0:00:06]} 24. Ncxe5 {[%emt 0:00:12]} ({White should try} 24. Rxb7 $14 Rc3 25. Nfd2) 24... Nxe5 {[%emt 0:01:08]} 25. Nxe5 {[%emt 0:00:10]} Rd4 {[%emt 0:11:13]} 26. f3 {[%emt 0:03:07][%cal Oe5g4]} c6 {[%emt 0:03:58]} 27. Rc5 {[%emt 0:00:31][%cal Oa5a6]} Ra8 {[%emt 0:03:45]} 28. Rb1 {[%emt 0:02:15]} Ra7 {[%emt 0:00:18] [#]} (28... Nd7 $11 29. Nxd7 Rxd7) 29. Rb2 {[%emt 0:00:49] White is more active.} (29. a6 $1 $16 {[%cal Ra6b7]} bxa6 30. Nxc6 (30. Rxc6 Rd8 $14)) 29... Nd7 {[%emt 0:01:46]} 30. Nxd7 {[%emt 0:00:05]} Rxd7 {[%emt 0:00:04] Weighted Error Value: White=0.12 (very precise) /Black=0.12 (very precise) .  Mistake:       	White=2     	Black=1      Inaccurate:     	White=2     	Black=2      OK:         	White=7     	Black=6      Best:        	White=1     	Black=1} 1/2-1/2

[Event "15th Chennai GM Open 2025"]
[Site "Chennai"]
[Date "2025.01.06"]
[Round "7.3"]
[White "Vijay, Shreeram P"]
[Black "Iniyan, Pa"]
[Result "0-1"]
[ECO "B23"]
[WhiteElo "2025"]
[BlackElo "2508"]
[Annotator "TA"]
[PlyCount "164"]
[EventDate "2025.01.02"]
[EventType "swiss"]
[EventCountry "IND"]
[SourceTitle "playchess.com"]
[Source "ChessBase"]
[SourceQuality "1"]
[TimeControl "5400+30"]

{[%evp 42,164,77,81,68,71,56,67,62,0,0,0,0,0,0,0,0,0,0,0,0,0,0,0,0,-62,-55,-58,-62,-55,-58,-108,-98,-158,-140,-192,-133,-132,-132,-130,-132,-139,-125,-139,-116,-125,-132,-132,-100,-100,-47,-144,-144,-161,-146,-172,-172,-147,-147,-147,-147,-147,-147,-147,-147,-147,-147,-184,-147,-184,-147,-184,-184,-184,-184,-184,-184,-184,-184,-184,-184,-184,-184,-184,-184,-183,-184,-183,-162,-162,-162,-168,-155,-189,-189,-202,-202,-202,-202,-482,-478,-454,-389,-461,-453,-829,-825,-744,-732,-674,-650,-536,-499,-5640,-5724,-4140,-1894,-5089,-5406,-2191,-1543,-773,-504,-2172,-2102]} 1. e4 {[%emt 0:00:08]} c5 {[%emt 0:07:42]} 2. Nc3 {[%emt 0:00:44]} Nc6 {[%emt 0:00:41]} 3. f4 {[%emt 0:00:22]} g6 {[%emt 0:00:07]} 4. Nf3 {[%emt 0:00:20]} Bg7 {[%emt 0:00:06]} 5. a4 {[%emt 0:01:10]} e6 {[%emt 0:01:28]} 6. e5 {[%emt 0:00:19]} d6 {[%emt 0:05:12]} 7. Bb5 {[%emt 0:00:23]} Nge7 {[%emt 0:00:07]} 8. Ne4 {[%emt 0:00:11]} dxe5 {[%emt 0:00:11]} 9. fxe5 {[%emt 0:00:07]} O-O {[%emt 0:01:57]} 10. Nf6+ {[%emt 0:00:05]} Kh8 {[%emt 0:01:11]} 11. d4 {[%emt 0:00:06]} Nd5 {[%emt 0:26:54]} 12. Bxc6 {[%emt 0:00:51]} bxc6 {[%emt 0:02:18]} 13. dxc5 {[%emt 0:00:48]} Qa5+ {[%emt 0:18:24]} 14. Bd2 {[%emt 0:03:34]} Qxc5 {[%emt 0:00:09]} 15. Ne4 {[%emt 0:00:09]} Qc4 {[%emt 0:01:30]} 16. Nd6 {[%emt 0:00:13]} Qc5 {[%emt 0:00:04]} 17. c4 {[%emt 0:14:51]} Nb4 {[%emt 0:05:48]} 18. Qb3 {[%emt 0:04:04]} Rb8 {[%emt 0:00:09]} 19. a5 {[%emt 0:09:40]} Ba6 {[%emt 0:06:32]} 20. Ra4 {[%emt 0:09:56]} Nd5 {[%emt 0:01:51]} 21. Ne4 {[%emt 0:02:57]} Qe7 {[%emt 0:01:47]} (21... Rxb3 $11 {is superior.} 22. Nxc5) 22. Qc2 $16 {[%emt 0:02:58]} Nb4 {[%emt 0:01:26]} 23. Qc3 {[%emt 0:00:46]} c5 {[%emt 0:00:08]} 24. Be3 $1 {[%emt 0:03:53]} Rfc8 {[%emt 0:06:19]} 25. Nxc5 {[%emt 0:19:18]} (25. O-O $14) 25... Rxc5 $11 {[%emt 0:00:13]} 26. Rxb4 {[%emt 0:00:04]} Rbc8 $1 {[%emt 0:00:58]} (26... Rxb4 27. Qxb4 Rc7 28. Qxe7 Rxe7 29. c5 $16) 27. Bxc5 {[%emt 0:02:02]} Qxc5 {[%emt 0:00:05]} 28. Ra4 {[%emt 0:17:54]} Bxc4 {[%emt 0:02:58]} 29. b3 {[%emt 0:01:40]} Bxb3 $1 {[%emt 0:00:46]} 30. Qxb3 {[%emt 0:00:06]} Qc1+ $1 {[%emt 0:00:15]} 31. Kf2 $1 {[%emt 0:00:05]} (31. Qd1 $2 Qe3+ 32. Kf1 Rc1 $19 (32... Bxe5 33. Ne1 $16)) 31... Qxh1 {[%emt 0:00:41]} 32. Rc4 {[%emt 0:00:03]} Rf8 {[%emt 0:00:55]} 33. Rc7 {[%emt 0:00:56]} (33. Qb2 $11 Bh6 34. Rc7) 33... Qa1 $15 {[%emt 0:02:29]} 34. Qc3 {[%emt 0:03:13]} Qa2+ {[%emt 0:01:34]} 35. Kg3 {[%emt 0:00:09]} a6 {[%emt 0:00:12]} 36. Qb4 {[%emt 0:03:18]} (36. Rc5 $15) 36... Kg8 {[%emt 0:01:09]} 37. Ra7 {[%emt 0:00:42]} ({White should play} 37. Rc5) 37... Qd5 {[%emt 0:01:24]} 38. Qd6 {[%emt 0:00:26]} (38. Qc3 $17) 38... Qxa5 {[%emt 0:00:28]} ({Better is} 38... Qe4 $19 {[%cal Og6g5] aiming for ...g5!.} 39. Rd7 h5) 39. Rxa6 $17 {[%emt 0:00:01]} Qc3 {[%emt 0:00:26]} 40. Ra7 {[%emt 0:01:03]} Qe3 {[%emt 0:00:57]} 41. Rd7 {[%emt 0:00:15]} h6 {[%emt 0:01:49]} 42. h3 {[%emt 0:00:49]} Kh7 {[%emt 0:01:27]} 43. Qd4 {[%emt 0:00:39]} Qxd4 {[%emt 0:00:28]} 44. Rxd4 {[%emt 0:00:02]} g5 {[%emt 0:00:07]} 45. h4 {[%emt 0:00:14] [#]} Kg6 {[%emt 0:00:49]} (45... gxh4+ $1 $17 46. Rxh4 Rb8) 46. hxg5 {[%emt 0:00:06]} (46. Rg4 $1 $15) 46... hxg5 $17 {[%emt 0:00:06]} 47. Kg4 {[%emt 0:00:26]} Ra8 {[%emt 0:00:26]} 48. Re4 {[%emt 0:00:31]} Ra5 {[%emt 0:00:05]} 49. g3 {[%emt 0:01:44]} Rc5 {[%emt 0:00:47]} 50. Kh3 {[%emt 0:00:34]} Kf5 {[%emt 0:01:07]} 51. Rg4 {[%emt 0:00:12]} Bh6 {[%emt 0:00:14]} 52. Ra4 {[%emt 0:00:35]} Rc3 {[%emt 0:00:12]} 53. g4+ {[%emt 0:00:36]} Kg6 {[%emt 0:00:06]} 54. Kg3 {[%emt 0:00:17]} Rc5 {[%emt 0:00:04]} 55. Re4 {[%emt 0:00:16]} Bg7 {[%emt 0:00:07]} 56. Re3 {[%emt 0:00:15]} Ra5 {[%emt 0:00:08]} 57. Re4 {[%emt 0:00:01]} Bf8 {[%emt 0:00:12]} 58. Re2 {[%emt 0:01:02]} Bb4 {[%emt 0:01:57]} 59. Re4 {[%emt 0:00:35]} Ba3 {[%emt 0:00:21]} 60. Re1 {[%emt 0:00:10]} Rc5 {[%emt 0:00:09]} 61. Re2 {[%emt 0:00:27]} Bc1 {[%emt 0:00:23]} 62. Kg2 {[%emt 0:00:25]} Bf4 {[%emt 0:00:04]} 63. Kf2 {[%emt 0:00:22]} Kg7 {[%emt 0:00:05]} 64. Kg2 {[%emt 0:01:26]} Ra5 {[%emt 0:00:07]} 65. Kf2 {[%emt 0:00:06]} Kf8 {[%emt 0:00:12]} 66. Kg2 {[%emt 0:00:11]} Ke7 {[%emt 0:00:09]} 67. Kf2 {[%emt 0:00:36]} Kd7 {[%emt 0:00:09]} 68. Kg2 {[%emt 0:00:54]} Kc6 {[%emt 0:00:07]} 69. Rc2+ {[%emt 0:00:42]} Kd5 {[%emt 0:00:08]} 70. Rc7 $2 {[%emt 0:00:34]} (70. Re2 {might work better.}) 70... Ra2+ $19 {[%emt 0:00:50]} (70... Bxe5 71. Rxf7 Bf4 72. Rd7+ Ke4 73. Nd2+ Bxd2 74. Rxd2 $11) 71. Kf1 {[%emt 0:00:49]} Ke4 {[%emt 0:00:07]} (71... Bxe5 72. Rd7+ (72. Rxf7 Ra1+ 73. Ke2 Bf4 $11) 72... Ke4 73. Nxg5+ Kf4 74. Nxf7 $11) 72. Ne1 {[%emt 0:00:29]} Bg3 {[%emt 0:00:38]} (72... Kxe5 73. Rxf7 Be3 74. Nd3+ Ke4 75. Nb4 $17) 73. Ng2 {[%emt 0:00:30]} (73. Rc4+ $142 Kd5 74. Rc1) 73... Rf2+ $19 {[%emt 0:00:35]} 74. Kg1 {[%emt 0:00:02]} Rf3 {[%emt 0:01:17]} ({Stronger than} 74... Kxe5 75. Rc3 $11) 75. Rc4+ {[%emt 0:00:47]} Kd5 {[%emt 0:01:30]} 76. Rc2 {[%emt 0:00:43]} Bxe5 {[%emt 0:00:38]} 77. Rd2+ {[%emt 0:00:22]} (77. Ne1 $142 Rg3+ 78. Rg2) 77... Bd4+ $19 {[%emt 0:00:38]} 78. Kh2 {[%emt 0:00:07]} Ke4 {[%emt 0:00:10]} 79. Re2+ {[%emt 0:00:21]} Kd3 {[%emt 0:01:28]} 80. Ra2 {[%emt 0:00:08]} Be5+ {[%emt 0:00:09]} 81. Kg1 {[%emt 0:00:07]} Rg3 {[%emt 0:00:22]} 82. Ra4 {[%emt 0:01:10]} (82. Kf2 $142 Rxg4 83. Ne1+ Ke4 84. Nc2 Rf4+ 85. Kg2) 82... Bd4+ {[%emt 0:00:17]} 0-1